bitfinex-derivatives/quotes_ETHF0:USTF0_20250928
["timestamp","ask_amount","ask_price","bid_price","bid_amount"]
[1759095121290,1.61531525,4049.5,4049.4,0.00301862]
[1759095127091,0.2053,4048.6,4048.5,0.5152]
[1759095127294,2.32916307,4048.6,4048.5,0.5152]
[1759095127587,2.32916307,4048.6,4048.5,0.7382]
[1759095128300,2.77359307,4048.6,4048.5,0.74005973]
[1759095132298,2.77359307,4048.6,4048.5,0.20775973]
[1759095132893,2.77359307,4048.6,4048.5,0.00185973]
[1759095133398,3.26783943,4048.6,4048.5,0.00185973]
[1759095135392,3.02083943,4048.6,4048.5,0.00185973]
[1759095135598,3.26783943,4048.6,4048.5,0.00185973]
[1759095136194,3.26783943,4048.6,4047.9,3.23250447]
[1759095136195,0.44449,4048.0,4047.9,3.23250447]
[1759095136502,2.95525307,4048.0,4047.9,3.43910447]
[1759095136893,2.95525307,4048.0,4047.9,3.76550447]
[1759095137202,2.95525307,4048.0,4047.9,3.76735585]
[1759095138305,0.44449,4048.1,4047.9,3.99365585]
[1759095138506,0.44449,4048.1,4047.9,3.23435585]
[1759095138507,0.8296,4048.0,4047.9,3.23435585]
[1759095138801,1.66477985,4048.0,4047.9,0.55955585]
[1759095139600,1.66477985,4048.0,4047.9,0.23315585]
[1759095142206,1.66477985,4048.0,4047.9,0.02655585]
[1759095146208,2.74228136,4048.0,4047.9,0.02655585]
[1759095154712,0.2192,4047.2,4047.1,0.555]
[1759095154915,2.31119151,4047.2,4047.1,0.4482]
[1759095155209,2.31119151,4047.2,4047.1,0.7754]
[1759095155915,2.31425906,4047.2,4047.1,0.77828703]
[1759095156109,2.52485906,4047.2,4047.1,5.77828703]
[1759095156510,2.52485906,4047.2,4047.1,0.77828703]
[1759095157011,2.27685906,4047.2,4047.1,0.77828703]
[1759095157208,2.52485906,4047.2,4047.1,0.77828703]
[1759095158317,2.08026906,4047.2,4047.1,0.77828703]
[1759095162320,2.57607595,4047.2,4047.1,0.77828703]
[1759095165017,2.32807595,4047.2,4047.1,0.77828703]
[1759095165229,2.57607595,4047.2,4047.1,0.77828703]
[1759095165819,0.49887444,4047.2,4047.1,0.77828703]
[1759095166019,0.25106755,4047.2,4047.1,0.77828703]
[1759095166324,1.28847511,4047.2,4047.1,0.77828703]
[1759095167125,1.49907511,4047.2,4047.1,0.77828703]
[1759095167326,1.49907511,4047.2,4047.1,0.45108703]
[1759095168122,1.49907511,4047.2,4047.1,0.77828703]
[1759095169022,1.49907511,4047.2,4047.1,0.23068703]
[1759095170930,2.57657662,4047.2,4047.1,0.23068703]
[1759095174832,2.32857662,4047.2,4047.1,0.56388703]
[1759095175023,2.57657662,4047.2,4047.1,0.56388703]
[1759095175423,2.57657662,4047.2,4047.1,0.23068703]
[1759095175624,2.57657662,4047.2,4047.1,0.00288703]
[1759095186546,0.8865,4046.5,4046.4,3.2078]
[1759095186745,2.70830907,4046.5,4046.4,3.2078]
[1759095187346,3.15296907,4046.5,4046.4,3.2078]
[1759095187548,3.15296907,4046.5,4046.4,3.20993863]
[1759095195448,3.15296907,4046.5,4046.4,0.00213863]
[1759095197648,1.34491,4046.0,4045.9,3.2078]
[1759095197954,3.16671907,4046.0,4045.9,3.2078]
[1759095198354,0.7645,4045.7,4045.6,0.7515]
[1759095198652,2.53475151,4045.7,4045.6,0.75344431]
[1759095200655,2.53475151,4045.7,4045.6,0.00194431]
[1759095201049,2.53475151,4045.7,4045.6,0.42644431]
[1759095201249,2.53475151,4045.7,4045.6,0.75344431]
[1759095202251,2.53475151,4045.7,4045.6,0.00194431]
[1759095203848,4.12175515,4045.7,4045.6,0.00194431]
[1759095204455,3.04425364,4045.7,4045.6,0.00194431]
[1759095204656,3.04425364,4045.7,4045.0,0.3412]
[1759095204657,0.86651,4045.1,4045.0,0.7796]
[1759095204850,2.52541151,4045.1,4045.0,0.7796]
[1759095205760,2.52541151,4045.1,4045.0,0.78159751]
[1759095206351,1.44791,4045.1,4045.0,0.78159751]
[1759095207461,1.19991,4045.1,4045.0,0.78159751]
[1759095212661,1.19991,4045.1,4045.0,0.00199751]
[1759095215556,1.70912487,4045.1,4045.0,0.00199751]
[1759095220769,1.11191,4045.6,4045.0,0.00199751]
[1759095220770,3.5412,4045.8,4045.0,9.12339751]
[1759095220965,0.3334,4046.4,4046.1,0.3412]
[1759095221167,4.07413,4046.8,4046.7,0.4384]
[1759095221362,4.32313,4046.8,4046.7,0.7796]
[1759095221666,4.65653,4046.8,4046.7,0.7796]
[1759095222969,3.9975,4046.8,4046.7,0.7796]
[1759095223169,3.4568,4046.8,4046.7,0.7796]
[1759095223362,0.249,4046.8,4046.7,0.7796]
[1759095223565,0.5824,4046.8,4046.7,0.7796]
[1759095223763,0.7897,4046.8,4046.7,0.7796]
[1759095224871,0.7897,4046.8,4046.7,3.9874]
[1759095227270,0.3334,4046.8,4046.7,3.9874]
[1759095227481,0.5407,4048.0,4047.9,1.2241]
[1759095227678,0.2073,4047.4,4047.3,0.5576]
[1759095227878,0.7551,4047.4,4047.3,0.5576]
[1759095228373,0.75701827,4047.4,4047.3,0.55955034]
[1759095228878,0.75701827,4047.4,4047.3,0.78155034]
[1759095239384,0.75701827,4047.4,4047.3,3.98935034]
[1759095244788,0.00191827,4047.4,4047.3,3.98935034]
[1759095244979,0.75581827,4047.4,4047.3,3.98935034]
[1759095246782,0.75581827,4047.4,4047.3,3.20975034]
[1759095247088,0.75581827,4047.4,4047.3,0.00195034]
[1759095248784,3.96361827,4047.4,4047.3,0.00195034]
[1759095249184,9.47165006,4047.4,4047.3,0.00195034]
[1759095251787,9.72065006,4047.4,4047.3,0.00195034]
[1759095252694,4.72065006,4047.4,4047.3,0.00195034]
[1759095263697,4.72213442,4047.4,4047.3,0.00195034]
[1759095265096,0.66799,4046.1,4046.0,0.5673]
[1759095265296,1.46219,4046.1,4046.0,0.7496]
[1759095266200,1.46219,4046.1,4046.0,0.75158399]
[1759095273206,1.97148101,4046.1,4046.0,0.75158399]
[1759095281714,1.97148101,4046.1,4046.0,0.22628399]
[1759095282015,1.97148101,4046.1,4046.0,0.54258399]
[1759095285912,1.97148101,4046.1,4046.0,0.22628399]
[1759095286120,0.7642,4045.1,4045.0,0.5624]
[1759095286618,0.9875,4045.1,4045.0,0.8787]
[1759095287012,0.9875,4045.1,4045.0,0.88101226]
[1759095289015,1.2133,4045.1,4045.0,0.75191226]
[1759095289727,1.72272988,4045.1,4045.0,0.75191226]
[1759095290221,1.72272988,4045.1,4045.0,0.43561226]
[1759095291025,1.72272988,4045.1,4045.0,0.75191226]
[1759095296227,1.72272988,4045.1,4045.0,0.00231226]
[1759095296731,1.72272988,4045.1,4045.0,0.21871226]
[1759095297527,1.72272988,4045.1,4045.0,0.75421226]
[1759095297733,1.97072988,4045.1,4045.0,0.75421226]
[1759095301129,1.97072988,4045.1,4045.0,0.21871226]
[1759095301431,1.97072988,4045.1,4045.0,0.52841226]
[1759095301831,1.97072988,4045.1,4045.0,0.21871226]
[1759095305131,1.97072988,4045.1,4045.0,0.00231226]
[1759095322541,1.72272988,4045.1,4045.0,0.00231226]
[1759095322748,1.97072988,4045.1,4045.0,0.00231226]
[1759095328352,2.80082845,4045.1,4045.0,0.00231226]
[1759095328553,3.04882845,4045.1,4045.0,0.00231226]
[1759095330455,1.97072988,4045.1,4045.0,0.00231226]
[1759095330853,1.72272988,4045.1,4045.0,0.00231226]
[1759095331043,1.97072988,4045.1,4045.0,0.00231226]
[1759095337757,1.97072988,4045.1,4045.0,0.76701226]
[1759095341859,1.74492988,4045.1,4045.0,0.76701226]
[1759095342863,1.95182988,4045.1,4045.0,0.76701226]
[1759095344755,1.49692988,4045.1,4045.0,0.76701226]
[1759095345961,1.70382988,4045.1,4045.0,0.76701226]
[1759095348766,1.70382988,4045.1,4045.0,3.97481226]
[1759095364864,1.25902988,4045.1,4045.0,3.97481226]
[1759095377093,1.25902988,4045.1,4045.0,4.10501226]
[1759095379097,1.05212988,4045.1,4045.0,4.10501226]
[1759095379697,0.50942988,4045.1,4045.0,4.10501226]
[1759095398710,0.332,4045.5,4045.0,5.21859169]
[1759095398917,0.5378,4045.5,4045.4,0.7697]
[1759095399110,1.04544904,4045.5,4045.4,0.7697]
[1759095401017,1.40624904,4045.5,4045.2,0.7775]
[1759095401222,0.94034904,4045.4,4045.3,0.7697]
[1759095401613,1.27234904,4045.4,4045.3,0.7697]
[1759095412727,0.7647,4045.4,4045.3,0.7697]
[1759095412919,0.5378,4045.4,4045.3,0.7697]
[1759095414924,0.674,4045.8,4045.7,0.67005]
[1759095415125,1.49076119,4045.8,4045.7,0.99225]
[1759095415424,1.24276119,4045.8,4045.7,1.21085]
[1759095416227,0.7407,4045.6,4045.5,3.2078]
[1759095416421,1.24276119,4045.6,4045.5,3.2078]
[1759095421630,1.24276119,4045.6,4045.5,3.4331]
[1759095422924,1.24276119,4045.6,4045.5,3.7553]
[1759095423124,1.24276119,4045.6,4045.5,3.2078]
[1759095425930,1.68752119,4045.6,4045.3,0.44479]
[1759095426235,1.37506119,4045.5,4045.4,0.5475]
[1759095441152,1.37506119,4045.5,4045.4,0.2253]
[1759095442253,1.24276119,4045.5,4045.4,0.7621]
[1759095459861,0.7407,4045.5,4045.4,0.7621]
[1759095460168,1.24202295,4045.5,4045.4,0.7621]
[1759095460765,1.37452295,4045.5,4045.4,0.7621]
[1759095480284,0.3114,4045.4,4045.1,1.33057943]
[1759095480581,1.18561,4045.1,4045.0,0.00231226]
[1759095480776,0.5615,4044.0,4043.9,3.2078]
[1759095480975,1.37422295,4044.0,4043.9,3.2078]
[1759095481180,0.4294,4043.7,4043.5,1.33057943]
[1759095481377,0.63342295,4044.0,4043.4,4.2274]
[1759095481378,0.5615,4043.5,4043.4,4.2274]
[1759095481682,0.87592531,4043.5,4043.4,4.23033062]
[1759095482278,0.74382531,4043.5,4043.4,4.23033062]
[1759095482480,0.00302531,4043.5,4043.4,4.23033062]
[1759095483983,0.3114,4044.1,4044.0,0.463]
[1759095484186,0.2091,4044.3,4044.2,0.7716]
[1759095484378,0.5205,4044.3,4044.2,0.7716]
[1759095484974,0.52294873,4044.3,4044.2,0.7716]
[1759095485583,0.00244873,4044.3,4044.2,0.7716]
[1759095486084,0.00244873,4044.3,4044.2,1.0196]
[1759095493390,0.73834873,4044.3,4044.2,1.0196]
[1759095494686,0.73834873,4044.3,4044.2,0.7716]
[1759095494890,0.73834873,4044.3,4044.2,1.0196]
[1759095497992,0.73834873,4044.3,4044.2,0.248]
[1759095498188,0.73834873,4044.3,4044.2,0.4545]
[1759095498393,0.73834873,4044.3,4044.2,0.7771]
[1759095498892,0.73834873,4044.3,4044.2,0.9848]
[1759095500484,0.73834873,4044.3,4044.2,0.7368]
[1759095505090,0.73834873,4044.3,4044.2,3.9446]
[1759095514803,0.73834873,4044.3,4044.2,4.1926]
[1759095515203,1.24907886,4044.3,4044.2,4.1926]
[1759095518310,0.73834873,4044.3,4044.2,4.1926]
[1759095521114,0.52574873,4044.3,4044.2,4.1926]
[1759095521419,1.03655968,4044.3,4044.2,4.1926]
[1759095528017,1.03655968,4044.3,4044.2,3.9446]
[1759095528212,1.03655968,4044.3,4044.2,4.1926]
[1759095535220,1.03655968,4044.3,4044.2,3.9446]
[1759095535426,1.03655968,4044.3,4044.2,4.1926]
[1759095538921,0.82995968,4044.3,4044.2,4.1926]
[1759095539225,1.04145968,4044.3,4044.2,4.1926]
[1759095540424,1.26055968,4044.3,4044.2,4.1926]
[1759095540629,1.26055968,4044.3,4044.2,0.7368]
[1759095543125,1.19224,4043.9,4043.8,1.86283477]
[1759095543329,1.19224,4043.9,4043.8,2.08693477]
[1759095548235,0.97314,4043.9,4043.8,2.08693477]
[1759095559948,0.5282,4043.9,4043.8,2.08693477]
[1759095561253,0.5282,4043.9,4043.8,1.83893477]
[1759095561453,0.5282,4043.9,4043.8,2.08693477]
[1759095568262,1.04054948,4043.9,4043.8,2.08693477]
[1759095570366,0.5282,4043.9,4043.8,2.08693477]
[1759095570663,1.04044752,4043.9,4043.8,2.08693477]
[1759095571456,0.5282,4043.9,4043.8,2.08693477]
[1759095578274,0.5282,4043.9,4043.8,1.008]
[1759095578471,0.5282,4043.9,4043.8,0.76]
[1759095578673,0.5282,4043.9,4043.8,1.008]
[1759095582273,0.756,4043.9,4043.8,0.76]
[1759095582474,0.756,4043.9,4043.8,1.008]
[1759095583873,0.3084,4043.9,4043.8,0.6983]
[1759095584074,0.7425,4043.9,4043.8,0.6983]
[1759095584563,0.7425,4043.9,4043.8,1.0389]
[1759095593787,0.7425,4043.9,4043.8,4.2467]
[1759095596292,1.25503883,4043.9,4043.8,4.2467]
[1759095597997,1.25503883,4043.9,4043.8,1.0389]
[1759095598190,1.25503883,4043.9,4043.8,4.2467]
[1759095600290,1.25503883,4043.9,4043.4,1.34767625]
[1759095600291,1.01639,4043.5,4043.4,0.76343062]
[1759095600494,1.84152883,4043.5,4043.4,0.22363062]
[1759095600685,1.84152883,4043.5,4043.4,0.00293062]
[1759095600890,1.84152883,4043.5,4043.4,0.54063062]
[1759095601086,0.72913883,4043.5,4043.4,0.76343062]
[1759095601299,0.51253883,4043.5,4043.4,0.76343062]
[1759095601498,1.04173883,4043.5,4043.4,0.76343062]
[1759095606895,1.26583883,4043.5,4043.4,0.76343062]
[1759095607196,0.46798934,4043.5,4043.4,10.76097625]
[1759095607400,0.00244873,4044.3,4044.2,0.7605]
[1759095607994,0.00244873,4044.3,4044.2,1.20541]
[1759095609195,0.00244873,4044.3,4044.2,6.20541]
[1759095609793,0.00244873,4044.3,4044.2,7.53736321]
[1759095610595,0.103,4045.4,4044.9,0.317]
[1759095610790,0.8563,4045.4,4045.3,0.7605]
[1759095611107,0.5292,4045.4,4045.3,0.7605]
[1759095611307,3.3385,4046.0,4045.5,0.136]
[1759095611308,3.5204,4046.0,4045.5,0.136]
[1759095611599,0.5521,4045.6,4045.5,1.1374]
[1759095614306,0.3355,4045.9,4045.5,0.8293]
[1759095614504,0.7655,4045.9,4045.8,3.9556]
[1759095617606,1.21026,4045.6,4045.5,0.5232]
[1759095623900,1.21026,4045.6,4045.5,0.2151]
[1759095624410,1.21026,4045.6,4045.5,0.5484]
[1759095624612,0.44479,4045.4,4045.2,0.5813]
[1759095624809,0.4209,4045.3,4045.2,1.0064]
[1759095625006,0.7377,4045.3,4045.2,1.0064]
[1759095626311,0.3168,4045.4,4045.3,0.7584]
[1759095626504,0.5264,4045.4,4045.3,0.7584]
[1759095629215,0.44477,4045.5,4045.3,0.7584]
[1759095629508,0.76156,4045.7,4045.3,0.4251]
[1759095629712,0.76156,4045.7,4045.6,0.7584]
[1759095630018,0.97116,4045.7,4045.6,0.7584]
[1759095631914,1.18246,4045.7,4045.6,0.7584]
[1759095636813,0.57246,4045.5,4045.4,0.2147]
[1759095637010,0.99336,4045.5,4045.4,0.548]
[1759095637208,0.99336,4045.5,4045.4,0.7584]
[1759095637408,1.18246,4045.5,4045.4,0.7584]
[1759095651124,0.86566,4045.5,4045.3,4.87221082]
[1759095651331,1.31016,4045.5,4045.4,1.29298716]
[1759095651526,1.31016,4045.5,4045.4,1.62628716]
[1759095651925,1.31016,4045.5,4045.4,1.87428716]
[1759095652228,1.31016,4045.5,4045.4,2.08468716]
[1759095653229,0.8654,4045.5,4045.4,2.08468716]
[1759095655731,0.7377,4045.5,4045.4,2.08468716]
[1759095656118,0.7377,4045.5,4045.3,4.53891082]
[1759095656119,0.7666,4045.1,4045.0,1.33111082]
[1759095656424,0.7666,4045.1,4045.0,1.57911082]
[1759095656620,0.7666,4045.1,4045.0,0.248]
[1759095664736,1.33692,4045.0,4044.9,1.54498716]
[1759095664942,1.33692,4045.0,4044.9,1.86958716]
[1759095666741,1.33692,4045.0,4044.9,1.32628716]
[1759095667435,1.84054906,4045.0,4044.9,1.32628716]
[1759095667634,1.33692,4045.0,4044.9,1.32628716]
[1759095667836,1.33692,4045.0,4044.9,1.86958716]
[1759095669936,1.33692,4045.0,4044.9,1.32628716]
[1759095670241,1.33692,4045.0,4044.9,1.54498716]
[1759095670430,1.33692,4045.0,4044.9,1.86958716]
[1759095674047,1.33692,4045.0,4044.9,2.09028716]
[1759095678844,1.21142,4045.0,4044.9,2.09028716]
[1759095681151,1.71512417,4045.0,4044.9,2.09028716]
[1759095681450,1.21142,4045.0,4044.9,2.09028716]
[1759095682154,1.71519032,4045.0,4044.9,2.09028716]
[1759095682450,1.71519032,4045.0,4044.9,1.84228716]
[1759095682651,1.71519032,4045.0,4044.9,2.09028716]
[1759095683052,1.21142,4045.0,4044.9,2.09028716]
[1759095683251,1.71251409,4045.0,4044.9,2.09028716]
[1759095694553,1.83811409,4045.0,4044.9,2.09028716]
[1759095700165,1.71251409,4045.0,4044.9,2.09028716]
[1759095702266,1.71251409,4045.0,4044.9,1.012]
[1759095710173,0.4448,4045.2,4045.0,0.1243]
[1759095710378,0.4448,4045.2,4045.1,1.0094]
[1759095710568,3.5349,4045.6,4045.1,0.6948]
[1759095710770,0.94631388,4045.5,4045.4,0.7614]
[1759095710966,0.94631388,4045.5,4045.4,1.0094]
[1759095711278,0.44476,4045.5,4045.4,1.0094]
[1759095711488,0.44476,4045.5,4045.4,2.35346423]
[1759095712687,0.77186,4045.5,4045.4,2.35346423]
[1759095716087,0.98646,4045.5,4045.4,2.35346423]
[1759095722088,0.44476,4045.5,4045.4,2.35346423]
[1759095724594,0.44476,4045.6,4045.4,2.35346423]
[1759095724793,0.44476,4045.6,4045.5,0.8914]
[1759095725897,0.76696,4045.6,4045.5,0.8914]
[1759095726392,0.98726,4045.6,4045.5,0.8914]
[1759095730402,0.5425,4045.6,4045.5,0.8914]
[1759095731797,0.13659744,4046.0,4045.5,0.8914]
[1759095731993,0.00189744,4046.0,4045.9,0.7618]
[1759095732193,0.00189744,4046.0,4045.9,1.0098]
[1759095736202,0.00189744,4046.0,4045.9,2.34459611]
[1759095740304,0.00189744,4046.0,4045.9,2.340875]
[1759095740503,0.00189744,4046.0,4045.9,1.0098]
[1759095741307,0.00189744,4046.0,4045.9,6.0098]
[1759095742807,0.3264,4046.7,4046.6,0.4341]
[1759095743007,0.3264,4046.7,4046.6,4.2176]
[1759095743209,0.3264,4046.9,4046.6,3.8899]
[1759095743507,0.8711,4047.0,4046.9,0.7618]
[1759095743807,0.87325765,4047.0,4046.9,1.01215592]
[1759095744404,0.74765765,4047.0,4046.9,1.01215592]
[1759095745005,0.74765765,4047.0,4046.9,1.21317032]
[1759095745707,0.74765765,4047.0,4046.9,1.01215592]
[1759095750017,0.53435765,4047.0,4046.9,1.01215592]
[1759095750315,0.00215765,4047.0,4046.9,1.01215592]
[1759095758413,0.00215765,4047.0,4046.9,2.34262329]
[1759095762417,0.00215765,4047.0,4046.9,4.49689035]
[1759095763322,0.00215765,4047.0,4046.9,3.16642298]
[1759095767220,0.56075765,4047.0,4046.9,1.65965567]
[1759095767422,0.56075765,4047.0,4046.9,2.10048945]
[1759095767631,0.56075765,4047.0,4046.9,3.43033163]
[1759095768326,0.56075765,4047.0,4046.9,2.10048945]
[1759095770241,0.56075765,4047.0,4046.9,3.17762298]
[1759095777648,0.33945765,4047.0,4046.9,3.17762298]
[1759095779351,0.33945765,4047.0,4046.9,4.95367167]
[1759095780657,0.00215765,4047.0,4046.9,4.95367167]
[1759095781548,0.32665765,4047.0,4046.9,4.95367167]
[1759095782957,0.54055765,4047.0,4046.9,4.95367167]
[1759095783152,0.00215765,4047.0,4046.9,2.79940461]
[1759095783457,0.00215765,4047.0,4046.9,4.95367167]
[1759095790662,0.00215765,4047.0,4046.9,3.17762298]
[1759095790857,0.00215765,4047.0,4046.9,4.95594581]
[1759095791356,0.00215765,4047.0,4046.9,3.17762298]
[1759095793460,0.134,4049.0,4048.3,0.7632]
[1759095793666,0.4321,4049.0,4048.9,1.62393353]
[1759095793966,0.93368581,4049.0,4048.9,1.62393353]
[1759095794451,0.93639757,4049.0,4048.9,1.62393353]
[1759095795557,1.25322684,4049.0,4048.9,1.62393353]
[1759095796068,0.75261176,4049.0,4048.9,1.62393353]
[1759095796751,0.43481176,4049.0,4048.9,1.84033353]
[1759095798065,0.21571176,4049.0,4048.9,2.08833353]
[1759095798666,0.00271176,4049.0,4048.9,2.08833353]
[1759095802969,0.00271176,4049.0,4048.9,2.28114997]
[1759095804671,0.00271176,4049.0,4048.9,2.08833353]
[1759095807770,0.00271176,4049.0,4048.9,2.28883504]
[1759095812679,0.22951176,4049.0,4048.9,2.28883504]
[1759095813477,0.00271176,4049.0,4048.9,2.28883504]
[1759095823287,0.00271176,4049.0,4048.9,3.62218625]
[1759095824293,0.00271176,4049.0,4048.9,3.88613304]
[1759095824789,0.22951176,4049.0,4048.9,3.88613304]
[1759095825291,0.00271176,4049.0,4048.9,3.88613304]
[1759095826387,0.00271176,4049.0,4048.9,2.55278183]
[1759095827796,0.00271176,4049.0,4048.9,4.33058345]
[1759095828095,0.00271176,4049.0,4048.9,2.55278183]
[1759095829497,0.00271176,4049.0,4048.9,4.33058345]
[1759095830296,0.00271176,4049.0,4048.9,2.55278183]
[1759095834905,0.00271176,4049.0,4048.9,4.33058345]
[1759095837298,0.00271176,4049.0,4048.9,2.55278183]
[1759095839596,0.00271176,4049.0,4048.9,4.33058345]
[1759095841297,0.00271176,4049.0,4048.9,2.55278183]
[1759095842511,0.21421176,4049.0,4048.9,2.55278183]
[1759095843005,0.21421176,4049.0,4048.9,2.30478183]
[1759095843194,0.42831176,4049.0,4048.9,2.33638183]
[1759095843400,0.42831176,4049.0,4048.9,2.29988183]
[1759095843597,0.74951176,4049.0,4048.9,2.54788183]
[1759095844005,0.21421176,4049.0,4048.9,2.54788183]
[1759095844711,5.74951176,4049.0,4048.9,0.3384]
[1759095845406,0.7468,4048.9,4048.8,0.248]
[1759095846309,5.7468,4048.9,4048.8,0.248]
[1759095852815,0.7399,4048.7,4048.6,1.64938032]
[1759095854507,0.7399,4048.7,4048.6,0.3083]
[1759095854710,1.18433,4048.7,4048.6,0.3364]
[1759095854910,1.18433,4048.7,4048.5,3.4558]
[1759095854911,0.7399,4048.6,4048.5,3.4558]
[1759095855208,0.3164,4048.4,4048.3,0.248]
[1759095855414,0.7399,4048.4,4048.3,0.248]
[1759095856109,1.18437,4048.3,4048.2,0.3364]
[1759095860417,1.18437,4048.3,4048.1,0.248]
[1759095860418,1.18439,4048.1,4048.0,3.2078]
[1759095861120,6.18439,4048.1,4048.0,3.2078]
[1759095861321,0.86803,4047.7,4047.6,0.3364]
[1759095861611,1.18443,4047.7,4047.6,0.3364]
[1759095862113,0.7399,4047.6,4047.5,3.2078]
[1759095863917,0.7399,4047.6,4047.5,3.5206]
[1759095864520,0.7399,4047.6,4047.5,3.2078]
[1759095864713,5.7399,4047.6,4047.5,3.2078]
[1759095865017,1.193,4047.1,4047.0,3.2078]
[1759095866319,6.193,4047.1,4047.0,3.2078]
[1759095866515,6.193,4047.1,4047.0,3.5206]
[1759095869822,6.193,4047.1,4047.0,0.3128]
[1759095871017,6.441,4047.1,4047.0,0.3128]
[1759095875127,6.441,4047.1,4046.9,0.31515592]
[1759095875327,6.441,4047.1,4047.0,0.5207]
[1759095875527,6.441,4047.1,4047.0,0.6487]
[1759095875727,6.193,4047.1,4047.0,0.6487]
[1759095875926,6.441,4047.1,4047.0,0.5207]
[1759095876226,6.441,4047.1,4047.0,0.3128]
[1759095879528,1.193,4047.1,4047.0,0.3128]
[1759095879727,1.441,4047.1,4047.0,0.3128]
[1759095880430,1.441,4047.1,4046.9,0.00235592]
[1759095880631,1.441,4047.1,4046.9,0.31515592]
[1759095881431,1.441,4047.1,4047.0,0.3128]
[1759095883639,1.193,4047.1,4047.0,0.3128]
[1759095883838,1.441,4047.1,4047.0,0.3128]
[1759095884935,0.5618,4047.0,4046.9,0.00235592]
[1759095885141,0.8724,4047.0,4046.9,0.00235592]
[1759095885337,0.7484,4047.0,4046.9,0.31515592]
[1759095888437,1.2473203,4047.0,4046.9,0.31515592]
[1759095890636,0.9367203,4047.0,4046.9,0.74895592]
[1759095890838,1.1847203,4047.0,4046.9,0.74895592]
[1759095891936,0.4989203,4047.0,4046.9,1.82664408]
[1759095892136,0.7469203,4047.0,4046.9,1.82664408]
[1759095892544,0.9711203,4047.0,4046.9,1.82664408]
[1759095897647,0.7469203,4047.0,4046.9,1.82664408]
[1759095898548,0.9738203,4047.0,4046.9,0.74895592]
[1759095901552,0.4989203,4047.0,4046.9,0.74895592]
[1759095902551,0.4989203,4047.0,4046.9,3.95675592]
[1759095910657,1.18858,4048.2,4048.1,0.7687]
[1759095911158,1.18858,4048.2,4048.1,0.2269]
[1759095911353,0.4348,4048.2,4047.9,0.3415]
[1759095911564,0.4348,4048.2,4048.1,0.5587]
[1759095911954,0.4348,4048.2,4048.1,0.2172]
[1759095912157,0.7525,4048.2,4048.1,0.5587]
[1759095912357,0.7525,4048.2,4048.1,0.2172]
[1759095912558,0.3177,4048.1,4048.0,3.2078]
[1759095912965,0.7513,4048.1,4048.0,3.2078]
[1759095913662,0.5245,4048.1,4048.0,3.9718]
[1759095914360,0.7513,4048.1,4048.0,3.9718]
[1759095917456,0.7513,4048.1,4048.0,3.5493]
[1759095917668,0.7513,4048.1,4048.0,3.2078]
[1759095918262,0.7513,4048.1,4048.0,3.425]
[1759095918764,0.7513,4048.1,4048.0,3.7665]
[1759095920473,0.7513,4048.1,4048.0,3.9718]
[1759095927771,0.75667,4048.3,4048.2,0.7487]
[1759095927971,1.25477157,4048.3,4048.2,0.7487]
[1759095928274,1.47207157,4048.3,4048.2,0.7487]
[1759095928775,1.02760157,4048.3,4048.2,0.7487]
[1759095929377,1.25120157,4048.3,4048.2,0.7487]
[1759095931572,0.49810157,4048.3,4048.2,0.7487]
[1759095931973,1.19754,4048.6,4048.5,0.7487]
[1759095932274,1.69582689,4048.6,4048.5,0.7487]
[1759095932772,1.69582689,4048.6,4048.5,0.2144]
[1759095933372,1.69582689,4048.6,4048.5,0.7487]
[1759095933578,1.94382689,4048.6,4048.5,0.7487]
[1759095935972,0.2173,4048.3,4048.2,0.97257]
[1759095936284,0.7531,4048.3,4048.2,1.19317]
[1759095938085,1.25186303,4048.3,4048.2,1.19317]
[1759095943477,1.25186303,4048.3,4048.2,0.7487]
[1759095952884,0.44448,4048.2,4048.1,3.2078]
[1759095953085,0.2173,4047.2,4047.1,3.2078]
[1759095953293,1.69645303,4047.2,4047.1,3.2078]
[1759095954290,1.33001,4047.0,4046.7,0.249]
[1759095954489,1.82877303,4047.0,4046.7,0.249]
[1759095955386,1.33001,4047.0,4046.7,0.249]
[1759095955893,1.33001,4047.0,4046.9,0.22175592]
[1759095956487,1.33001,4047.0,4046.9,0.00235592]
[1759095968508,1.57901,4047.0,4046.9,0.00235592]
[1759095969707,2.08442812,4047.0,4046.9,0.00235592]
[1759095970210,1.2046,4046.2,4046.1,4.5498565]
[1759095970619,1.2046,4046.2,4046.1,4.7692565]
[1759095971117,1.2046,4046.2,4046.1,4.7718992]
[1759095971616,1.2046,4046.2,4046.1,4.5524992]
[1759095973413,1.2046,4046.2,4046.1,3.2104427]
[1759095980325,1.2046,4046.2,4046.1,3.4299427]
[1759095981723,1.2046,4046.2,4046.1,3.7619427]
[1759095982330,1.71126228,4046.2,4046.1,3.7619427]
[1759095984227,1.71126228,4046.2,4046.1,3.4299427]
[1759095986530,1.71126228,4046.2,4046.1,3.7410427]
[1759095988331,1.71126228,4046.2,4046.1,3.9657427]
[1759095988733,1.71126228,4046.2,4046.1,0.7579427]
[1759095995631,1.71126228,4046.2,4046.1,0.0026427]
[1759096001137,1.71126228,4046.2,4046.1,0.5326427]
[1759096001638,1.71126228,4046.2,4046.1,0.0026427]
[1759096008443,4.91906228,4046.2,4046.1,0.0026427]
[1759096009139,1.20935,4045.7,4045.6,3.2078]
[1759096009342,1.96401228,4045.7,4045.6,3.2078]
[1759096010043,1.96843117,4045.7,4045.6,3.21078068]
[1759096012042,1.96843117,4045.7,4045.6,0.00298068]
[1759096019853,1.33274,4045.0,4044.9,0.5579]
[1759096020653,1.33274,4045.0,4044.9,0.7661]
[1759096020852,1.33274,4045.0,4044.9,0.76799958]
[1759096022749,1.33274,4045.0,4044.9,0.22189958]
[1759096023749,1.84060007,4045.0,4044.9,0.22189958]
[1759096024950,1.84060007,4045.0,4044.9,0.55979958]
[1759096025354,1.84060007,4045.0,4044.9,0.22189958]
[1759096025946,1.84060007,4045.0,4044.9,0.00189958]
[1759096031058,1.84031877,4045.0,4044.9,0.00189958]
[1759096041662,1.84031877,4045.0,4044.9,0.21059958]
[1759096042461,1.84031877,4045.0,4044.9,0.00189958]
[1759096046373,2.08831877,4045.0,4044.9,0.00189958]
[1759096069099,1.84031877,4045.0,4044.9,0.00189958]
[1759096069399,2.08831877,4045.0,4044.9,0.00189958]
[1759096070496,2.08956491,4045.0,4044.9,0.00189958]